Workbook

Sheet Отчеты
A1: Списание сырья на готовую продукцию
E2: нормы | AT2: Списоно на готовую продукцию
A3: № | B3: Наименование изделия | C3: артикул/рисунок изделия | D3: выраб.гот.прод.за текущ м-ц | E3: Раматура | F3: Названия сырья > | J3: Цемент | W3: Песок | AT3: Раматура | AU3: Названия сырья > | BO3: Песок | CI3: Цемент
A4: 1 | J4: 0.0018 | W4: 0.0016 | X4: 0.0015 | AU4: 0 | BA4: 0 | BF4: 0 | BK4: 0 | BN4: =D4*X4 -> 0 | BO4: =D4*W4 -> 0 | BP4: =D4*X4 -> 0 | BQ4: 0 | BR4: 0 | BT4: 0 | BU4: 0 | BW4: 0 | BY4: 0 | CA4: 0 | CI4: =D4*J4 -> 0
A5: 2 | G5: 0.0019 | J5: 0.0019 | U5: 0.0014 | CI5: 0
A6: 3 | J6: 0.0024 | W6: 0.0016 | X6: 0.0018 | BO6: =D6*W6 -> 0 | BP6: =D6*X6 -> 0 | CI6: =D6*J6 -> 0
A7: 4 | J7: 0.0024 | AE7: 0.0022 | AF7: 0.0021 | AY7: =D7*AE7 -> 0 | AZ7: =D7*AF7 -> 0 | CI7: 0
A8: 5 | J8: 0.003 | W8: 0.0022 | X8: 0.0026 | BO8: =D8*W6 -> 0 | BP8: =D8*X6 -> 0 | CE8: 0 | CI8: 0
A9: 6 | G9: 0.0028 | J9: 0.0033 | U9: 0.0023 | AV9: =D9*G9 -> 0 | BM9: =D9*U9 -> 0 | CI9: 0
A10: 7 | B10: Бетонный пасынок | D10: 20 | E10: 0.0035 | J10: 0.0042 | W10: 0.0031 | AT10: =D10*E10 -> 0.07 | BO10: =D10*W10 -> 0.062 | CI10: 0.084
A11: 8 | G11: 0.0035 | J11: 0.0042 | U11: 0.0032 | AV11: =D11*G11 -> 0 | BM11: =D11*U11 -> 0 | CI11: 0
A12: 9 | G12: 0.0104 | J12: 0.0041 | AV12: =D12*G12 -> 0 | CI12: 0
A13: 10 | H13: 0.0035 | J13: 0.0042 | AE13: 0.0032 | AW13: =D13*H13 -> 0 | AY13: =AE13*D13 -> 0 | AZ13: =D13*AF13 -> 0 | CI13: 0
A14: 11 | E14: 0.0045 | J14: 0.0053 | W14: 0.0034 | AT14: =D14*E14 -> 0 | BO14: =D14*W14 -> 0 | CI14: 0
A15: 12 | G15: 0.0045 | J15: 0.0053 | U15: 0.0034 | AV15: =D15*G15 -> 0 | BM15: =D15*U15 -> 0 | CI15: 0
A16: 13 | G16: 0.0117 | J16: 0.0048 | AV16: =D16*G16 -> 0 | CI16: 0
A17: 14 | H17: 0.0045 | J17: 0.0053 | AE17: 0.0042 | AW17: =D17*H17 -> 0 | AY17: =AE17*D17 -> 0 | AZ17: =D17*AF17 -> 0 | BV17: =SUM(BU17) -> 0 | CI17: 0
A18: 15 | E18: 0.0053 | J18: 0.0065 | W18: 0.0043 | AT18: =D18*E18 -> 0 | BO18: =D18*W18 -> 0 | CI18: 0
A19: 16 | J19: 0.0056 | U19: 0.0046 | AA19: 0.0085 | BH19: =D19*AA19 -> 0 | BM19: =D19*U19 -> 0 | CI19: 0
A20: 17 | J20: 0.0056 | AB20: 0.0085 | AE20: 0.0046 | AY20: =AE20*D20 -> 0 | BI20: =D20*AB20 -> 0 | CI20: 0
D21: =SUM(D4:D20) -> 20 | AT21: =SUM(AT4:AT20) -> 0.07 | AU21: 0 | AV21: 0 | AW21: 0 | AX21: 0 | AY21: 0 | AZ21: 0 | BA21: 0 | BB21: 0 | BC21: 0 | BD21: 0 | BE21: =SUM(BE4:BE20) -> 0 | BF21: =SUM(BF4:BF20) -> 0 | BG21: 0 | BH21: 0 | BI21: 0 | BJ21: 0 | BK21: 0 | BL21: 0 | BM21: 0 | BN21: 0 | BO21: 0.062 | BP21: 0 | BQ21: 0 | BR21: 0 | BS21: 0 | BT21: 0 | BU21: 0 | BV21: 0 | BW21: 0 | BX21: 0 | BY21: 0 | BZ21: 0 | CA21: 0 | CB21: 0 | CC21: 0 | CD21: 0 | CE21: 0 | CF21: 0 | CG21: 0 | CH21: 0 | CI21: 0.084
A36: Отчет о движении сырья
D37: Приход на склад | N37: Всего поступило Сырья за м-ц | O37: Итого | P37: остаток сырья на складе на конец м-ца | Q37: Списание сырья | R37: остаток
R38: сырья в цеху на конец м-ца | S38: итоговое к-во сырья на конец м-ца
A39: № | B39: Наименование сырья | C39: на складе на начало м-ца | D39: 2015-04-21 | E39: 2015-04-22 | F39: 2015-04-25
A41: 1 | B41: Цемент | C41: 1000 | N41: =SUM(D41:M41) -> 0 | O41: =C41+N41 -> 1000 | Q41: =CI21 -> 0.084 | R41: =O41-P41-Q41 -> 999.916 | S41: =P41+R41 -> 999.916
A42: 2 | B42: Песок | C42: 500 | D42: 300 | N42: 300 | O42: 800 | Q42: =BO21 -> 0.062 | R42: 799.938 | S42: 799.938
A43: 3 | B43: М.крошка | C43: 8800 | F43: 800 | N43: 800 | O43: 9600 | R43: 9600 | S43: 9600
A44: 4 | B44: Галька | C44: 546 | N44: 0 | O44: 546 | R44: 546 | S44: 546
A45: 5 | B45: Бутов камень | C45: 321 | N45: 0 | O45: 321 | R45: 321 | S45: 321
A46: 6 | B46: Раматура | C46: 8446 | N46: 0 | O46: 8446 | Q46: =AT21 -> 0.07 | R46: 8445.93 | S46: 8445.93
A47: 7 | B47: Шлак | E47: 250 | N47: 250 | O47: 250 | R47: 250 | S47: 250
A48: 8 | N48: 0 | O48: 0 | R48: 0 | S48: 0
A49: 9 | N49: 0 | O49: 0 | R49: 0 | S49: 0
A50: 10 | N50: 0 | O50: 0 | R50: 0 | S50: 0
A51: 11 | N51: 0 | O51: 0 | R51: 0 | S51: 0
A52: 12 | N52: 0 | O52: 0 | R52: 0 | S52: 0
A53: 13 | N53: 0 | O53: 0 | R53: 0 | S53: 0
A54: 14 | N54: 0 | O54: 0 | R54: 0 | S54: 0
A55: 15 | N55: 0 | O55: 0 | R55: 0 | S55: 0
A56: 16 | N56: =SUM(D56:M56) -> 0 | O56: 0 | R56: 0 | S56: 0
A57: 17 | N57: =SUM(D57:M57) -> 0 | O57: 0 | R57: 0 | S57: 0
A58: 18 | N58: 0 | O58: 0 | R58: 0 | S58: 0
A59: 19 | N59: 0 | O59: 0 | R59: 0 | S59: 0
A60: 20 | N60: 0 | O60: 0 | R60: 0 | S60: 0
A61: 21 | N61: 0 | O61: 0 | R61: 0 | S61: 0
C62: =SUM(C41:C61) -> 19613 | D62: =SUM(D41:D61) -> 300 | E62: =SUM(E41:E61) -> 250 | F62: =SUM(F41:F61) -> 800 | G62: =SUM(G41:G61) -> 0 | H62: =SUM(H41:H61) -> 0 | I62: =SUM(I41:I61) -> 0 | J62: =SUM(J41:J61) -> 0 | K62: =SUM(K41:K61) -> 0 | L62: =SUM(L41:L61) -> 0 | M62: =SUM(M41:M61) -> 0 | N62: =SUM(N41:N61) -> 1350 | O62: 20963 | P62: 0 | Q62: 0.216 | R62: 20962.784 | S62: 20962.784

Sheet Отчет№1
A1: Списание сырья на готовую продукцию
E2: нормы | H2: Списоно на готовую продукцию
A3: № | B3: Наименование изделия | C3: артикул/рисунок изделия | D3: выраб.гот.прод.за текущ м-ц | E3: Раматура | F3: Цемент | G3: Песок | H3: Раматура | I3: Песок | J3: Цемент
A4: 1 | F4: 0.0018 | G4: 0.0016 | I4: =D4*G4 -> 0 | J4: =D4*F4 -> 0
A5: 2 | F5: 0.0019 | J5: 0
A6: 3 | F6: 0.0024 | G6: 0.0016 | I6: =D6*G6 -> 0 | J6: =D6*F6 -> 0
A7: 4 | F7: 0.0024 | J7: 0
A8: 5 | F8: 0.003 | G8: 0.0022 | I8: =D8*G6 -> 0 | J8: 0
A9: 6 | F9: 0.0033 | J9: 0
A10: 7 | B10: Бетонный пасынок | D10: 20 | E10: 0.0035 | F10: 0.0042 | G10: 0.0031 | H10: =D10*E10 -> 0.07 | I10: =D10*G10 -> 0.062 | J10: 0.084
A11: 8 | F11: 0.0042 | J11: 0
A12: 9 | F12: 0.0041 | J12: 0
A13: 10 | F13: 0.0042 | J13: 0
A14: 11 | E14: 0.0045 | F14: 0.0053 | G14: 0.0034 | H14: =D14*E14 -> 0 | I14: =D14*G14 -> 0 | J14: 0
A15: 12 | F15: 0.0053 | J15: 0
A16: 13 | F16: 0.0048 | J16: 0
A17: 14 | F17: 0.0053 | J17: 0
A18: 15 | E18: 0.0053 | F18: 0.0065 | G18: 0.0043 | H18: =D18*E18 -> 0 | I18: =D18*G18 -> 0 | J18: 0
A19: 16 | F19: 0.0056 | J19: 0
A20: 17 | F20: 0.0056 | J20: 0
D21: =SUM(D4:D20) -> 20 | H21: =SUM(H4:H20) -> 0.07 | I21: =SUM(I4:I20) -> 0.062 | J21: =SUM(J4:J20) -> 0.084

Sheet Отчет№2
A1: Отчет о движении сырья
D2: Приход на склад | G2: Всего поступило Сырья за м-ц | H2: Итого | I2: остаток сырья на складе на конец м-ца | J2: Списание сырья | K2: остаток
K3: сырья в цеху на конец м-ца | L3: итоговое к-во сырья на конец м-ца
A4: № | B4: Наименование сырья | C4: на складе на начало м-ца | D4: 2015-04-21 | E4: 2015-04-22 | F4: 2015-04-25
A6: 1 | B6: Цемент | C6: 1000 | G6: =SUM(D6:F6) -> 0 | H6: =C6+G6 -> 1000 | J6: =Отчет№1!J21 -> 0.084 | K6: =H6-I6-J6 -> 999.916 | L6: =I6+K6 -> 999.916
A7: 2 | B7: Песок | C7: 500 | D7: 300 | G7: 300 | H7: 800 | J7: =Отчет№1!I21 -> 0.062 | K7: 799.938 | L7: 799.938
A8: 3 | B8: М.крошка | C8: 8800 | F8: 800 | G8: 800 | H8: 9600 | K8: 9600 | L8: 9600
A9: 4 | B9: Галька | C9: 546 | G9: 0 | H9: 546 | K9: 546 | L9: 546
A10: 5 | B10: Бутов камень | C10: 321 | G10: 0 | H10: 321 | K10: 321 | L10: 321
A11: 6 | B11: Раматура | C11: 8446 | G11: 0 | H11: 8446 | J11: =Отчет№1!H21 -> 0.07 | K11: 8445.93 | L11: 8445.93
A12: 7 | B12: Шлак | E12: 250 | G12: 250 | H12: 250 | K12: 250 | L12: 250
A13: 8 | G13: 0 | H13: 0 | K13: 0 | L13: 0
A14: 9 | G14: 0 | H14: 0 | K14: 0 | L14: 0
A15: 10 | G15: 0 | H15: 0 | K15: 0 | L15: 0
A16: 11 | G16: 0 | H16: 0 | K16: 0 | L16: 0
A17: 12 | G17: 0 | H17: 0 | K17: 0 | L17: 0
A18: 13 | G18: 0 | H18: 0 | K18: 0 | L18: 0
A19: 14 | G19: 0 | H19: 0 | K19: 0 | L19: 0
A20: 15 | G20: 0 | H20: 0 | K20: 0 | L20: 0
A21: 16 | G21: =SUM(D21:F21) -> 0 | H21: 0 | K21: 0 | L21: 0
A22: 17 | G22: 0 | H22: 0 | K22: 0 | L22: 0
A23: 18 | G23: 0 | H23: 0 | K23: 0 | L23: 0
A24: 19 | G24: 0 | H24: 0 | K24: 0 | L24: 0
A25: 20 | G25: 0 | H25: 0 | K25: 0 | L25: 0
A26: 21 | G26: 0 | H26: 0 | K26: 0 | L26: 0
C27: =SUM(C6:C26) -> 19613 | D27: =SUM(D6:D26) -> 300 | E27: =SUM(E6:E26) -> 250 | F27: =SUM(F6:F26) -> 800 | G27: =SUM(G6:G26) -> 1350 | H27: 20963 | I27: =SUM(I6:I26) -> 0 | J27: 0.216 | K27: 20962.784 | L27: 20962.784
